Cogmind - Beta 16 @@@ ROGUE MODE // 2025.12.24 @ 16:50:07 Player: Skergy Result: Destroyed by G-34 Mercenary with Small Laser Performance ------------- Evolutions (0) 0 Regions Visited (1) 200 Robots Destroyed (12) 60 Value Destroyed (308) 308 Prototype IDs (0) 0 Alien Tech Used (0) 0 Bonus (0) 0 TOTAL SCORE: 568 Bonus ------- None Cogmind --------- Core Integrity 0/250 Matter 254/300 Energy 250/250 System Corruption 0% Temperature Cool (6) Movement Walking (400) Ox4 Location -10/Materials Parts ------- > --- POWER (1) -------- Ion Engine > --- PROPULSION (2) --- Aluminum Leg Aluminum Leg > --- UTILITY (2) ------ Huge Storage Unit ECM Suite > --- WEAPON (2) ------- Light Assault Rifle > --- INVENTORY (25) --- Ion Engine Light Ion Engine Light Treads Aluminum Leg Aluminum Leg Flight Unit Flight Unit Flight Unit Improved Heat Sink Small Storage Unit Structural Scanner Visual Processing Unit Utility Shielding Weapon Shielding Light Assault Rifle Peak State ------------ > --- POWER ------------ Ion Engine > --- PROPULSION ------- Light Treads Light Treads > --- UTILITY ---------- Huge Storage Unit ECM Suite > --- WEAPON ----------- Assault Rifle Light Cannon > --- INVENTORY -------- Light Ion Engine Aluminum Leg Aluminum Leg Improved Heat Sink Small Storage Unit Structural Scanner Visual Processing Unit Light Assault Rifle Light Assault Rifle [Rating: 8] Favorites ----------- Power Ion Engine Engine Ion Engine Propulsion Light Treads Treads Light Treads Leg Aluminum Leg Utility ECM Suite Device ECM Suite Storage Huge Storage Unit Weapon Light Cannon Ballistic Gun Assault Rifle Ballistic Cannon Light Cannon Build | -11 -10 ------- Run | Yrd Mat Slots Evolved . | . . Power . | . . Propulsion . | . . Utility . | . . Weapon . | . . Parts Attached 14 | 6 8 Power 2 | 1 1 Engine 2 | 1 1 Core . | . . Reactor . | . . Propulsion 4 | 2 2 Treads 2 | 2 . Leg 2 | . 2 Wheel . | . . Hover . | . . Flight . | . . Utility 4 | 1 3 Device 1 | . 1 Storage 3 | 1 2 Processor . | . . Hackware . | . . Protection . | . . Artifact . | . . Weapon 4 | 2 2 Energy Gun . | . . Energy Cannon . | . . Ballistic Gun 3 | 2 1 Ballistic Cannon 1 | . 1 Launcher . | . . Special Weapon . | . . Impact Weapon . | . . Slashing Weapon . | . . Piercing Weapon . | . . Special Melee Weapon . | . . Unidentified Prototypes . | . . Parts Lost 3 | . 3 Power . | . . Propulsion 1 | . 1 Utility . | . . Weapon 2 | . 2 Highest Loss Streak 2 | . 2 To Critical Strikes . | . . Average Backups 11 | 2 11 Power 1 | . 1 Propulsion 4 | 1 4 Utility 4 | . 4 Weapon 1 | . 1 Tool/Special . | . . Unused Backups 11 | . 11 Power 1 | . 1 Propulsion 5 | . 5 Utility 5 | . 5 Weapon . | . . Tool/Special . | . . Average Slot Usage (%) 99 | . 99 Engine 14 | . 14 Treads 15 | . 15 Leg 12 | . 12 Device 13 | . 13 Storage 14 | . 14 Ballistic Gun 14 | . 14 Ballistic Cannon 12 | . 12 Peak Build Rating 8 | 6 8 Average Rating 7 | 4 7 On Entrance 3 | . 6 Avg Prop Armor Cover (%) 7 | . 7 Naked Turns . | . . Heaviest Build 92 | 13 92 Greatest Support 40 | 40 40 Greatest Overweight (x) 4 | . 4 Average Overweight (x) 2 | . 2 Largest Inventory Capacity 25 | 8 25 Average Capacity 22 | 6 23 Most Carried 15 | 4 15 Average Carried 11 | 2 11 Final Capacity 25 | 8 25 Final Carried 15 | 4 15 Class Distribution -------------------- 100% | Mutant Dominant Class ---------------- Mutant | -10/Materials Resources | -11 -10 ----------- Run | Yrd Mat Matter Collected 510 | 248 262 Remotely . | . . Salvage Created 309 | . 309 Parts 20 | . 20 Haulers Intercepted . | . . Recyclers Shooed . | . . Parts Field Recycled . | . . Retrieved Matter . | . . Parts Self-Destructed . | . . Prevented . | . . Parts Restored . | . . Kills | -11 -10 ------- Run | Yrd Mat Combat Hostiles Destroyed 9 | . 9 Guns 3 | . 3 Cannons 6 | . 6 Classes Destroyed 3 | . 3 Watcher 3 | . 3 Swarmer 3 | . 3 Grunt 6 | . 6 Best Kill Streak 4 | . 4 Combat Bots Only 3 | . 3 Max Kills in Single Turn 1 | . 1 Gunslinging . | . . Exploded . | . . Melee . | . . Uniques/NPCs Destroyed . | . . Combat | -11 -10 -------- Run | Yrd Mat Hostile Shots Fired 79 | . 79 Missed 23 | . 23 Hits 56 | . 56 Projectile 56 | . 56 Critical Strikes 1 | . 1 Damage Taken 868 | . 868 Core 258 | . 258 Absorbed by Shields . | . . Core Remaining (%) 100 | 100 . Volleys Fired 38 | . 38 Largest 2 | . 2 Hottest 50 | . 50 Shots Fired 76 | . 76 Gun 38 | . 38 Cannon 38 | . 38 Launcher . | . . Special . | . . Kinetic 76 | . 76 Thermal . | . . Explosive . | . . Electromagnetic . | . . Robot Hit Streak 7 | . 7 Robot Miss Streak 3 | . 3 Penetration Max . | . . Secondary Targets . | . . Shots Hit Robots 36 | . 36 Core Hits 20 | . 20 Critical Kills . | . . Critical Parts Destroyed . | . . Critical Strikes 2 | . 2 Blast 2 | . 2 Melee Attacks . | . . Impact . | . . Slashing . | . . Piercing . | . . Sneak Attacks . | . . Combat Hostiles . | . . Follow-up Attacks . | . . Damage Inflicted 607 | . 607 Guns 204 | . 204 Cannons 380 | . 380 Explosions . | . . Melee . | . . Ramming 23 | . 23 Kinetic 584 | . 584 Thermal . | . . Explosive . | . . Electromagnetic . | . . Impact . | . . Slashing . | . . Piercing . | . . Highest Corruption . | . . Average Corruption . | . . Corruption Purged . | . . Corruption Blocked . | . . Overload Shots . | . . Overflow Damage . | . . Projectiles . | . . Explosions . | . . Melee . | . . Knockbacks 4 | . 4 Impact . | . . Kinetic 4 | . 4 Secondary . | . . Self-Inflicted Damage . | . . Shots . | . . Rammed . | . . Targets Rammed 2 | . 2 Kicked 2 | . 2 Crushed . | . . Highest Temperature 38 | . 38 Average Temperature 12 | . 12 Received Heat Transfer 348 | . 348 Siege Activations . | . . Martial Activations . | . . Shielding Activations . | . . Robots Disrupted . | . . Combat Hostiles . | . . Robots Corrupted . | . . Combat Hostiles . | . . Parts Fried . | . . Impact Corruptions . | . . Robots Melted . | . . Combat Hostiles . | . . Parts Melted . | . . Heat Transferred . | . . Parts Sabotaged . | . . Parts Stolen . | . . Parts Stripped . | . . Power Chain Reactions . | . . Alert | -11 -10 ------- Run | Yrd Mat Maximum Alert Level . | . . Low Security (%) 100 | 100 100 Level 1 . | . . Level 2 . | . . Level 3 . | . . Level 4 . | . . Level 5 . | . . High Security . | . . Max Security . | . . Peak Influence 62 | . 62 Initial . | . . Average 10 | . 10 Influence Increases 268 | . 268 Destroy 0b10 Robot/C 180 | . 180 Destroy 0b10 Robot/NC 15 | . 15 Destroy Leader 46 | . 46 Successful Hack 25 | . 25 Destroy Structure 2 | . 2 Influence Decreases 259 | . 259 Time Decay 259 | . 259 Squads Dispatched 4 | . 4 Investigation 1 | . 1 Extermination . | . . Reinforcement 3 | . 3 Assault . | . . Garrison . | . . Intercept . | . . Searches Triggered . | . . Construction Impeded . | . . Haulers Reinforced . | . . Active Scanning Responses . | . . Cargo Convoy Interrupts . | . . Stealth | -11 -10 --------- Run | Yrd Mat Distress Signals 3 | . 3 Communications Jammed . | . . Distress Signals . | . . Times Spotted 21 | . 21 Peak Tracking Total 3 | . 3 Tactical Retreats 3 | . 3 ECM-based Alert Blocks 3 | . 3 Traps | -11 -10 ------- Run | Yrd Mat Traps Triggered 1 | . 1 Indirectly . | . . Trap Hack Attempts . | . . Triggered . | . . Disarmed . | . . Reprogrammed . | . . Reused . | . . Traps Extracted . | . . Installed . | . . Triggered . | . . Machines | -11 -10 ---------- Run | Yrd Mat Machines Disabled . | . . Max in Single Turn . | . . Machines Repaired . | . . Machines Dismantled . | . . Machines Sabotaged . | . . Overloaded Fab Kills . | . . Hacking | -11 -10 --------- Run | Yrd Mat Machines Accessed 5 | . 5 Terminals 3 | . 3 Fabricators . | . . Repair Stations . | . . Recycling Units 2 | . 2 Scanalyzers . | . . Garrison Access . | . . Total Hacks 15 | . 15 Successful 8 | . 8 Failed 7 | . 7 Catastrophic . | . . Database Lockouts . | . . Manual 12 | . 12 Terminals 11 | . 11 Fabricators . | . . Repair Stations . | . . Recycling Units 4 | . 4 Scanalyzers . | . . Garrison Access . | . . Terminal Hacks 3 | . 3 Branch Access Points 1 | . 1 Scanalyzer Index 1 | . 1 Recall Investigation 1 | . 1 Fabricator Hacks . | . . Repair Station Hacks . | . . Recycling Unit Hacks . | . . Scanalyzer . | . . Garrison Access Hacks . | . . Unauthorized Hacks 5 | . 5 Terminals 3 | . 3 Botnet 2 | . 2 Operators 1 | . 1 Fabricators . | . . Repair Stations . | . . Recycling Units 2 | . 2 Reject 2 | . 2 Scanalyzers . | . . Garrison Access . | . . Data Cores Recovered . | . . Used . | . . Hacking Detections 4 | . 4 Full Trace Events 1 | . 1 Feedback Events . | . . Feedback Blocked . | . . Robot Schematics Acquired . | . . Robots Built . | . . Authchips . | . . Time . | . . Total Robot Build Rating . | . . Part Schematics Acquired . | . . Parts Built . | . . Authchips . | . . Time . | . . Total Part Build Rating . | . . Part Studies Acquired . | . . Parts Repaired . | . . Time . | . . Parts Recycled . | . . Recycled Matter . | . . Retrieved Matter . | . . Retrieved Components . | . . Parts Scanalyzed . | . . Part Schematics Acquired . | . . Parts Damaged . | . . Bothacking | -11 -10 ------------ Run | Yrd Mat Used RIF Installer . | . . Robots Hacked . | . . Non-combat . | . . Combat . | . . Robot Hacks Applied . | . . Relay Couplers Released . | . . Fabnet Peak Effective % . | . . Robots Rewired . | . . Allies Hacked . | . . Hacks Repelled . | . . Allies | -11 -10 -------- Run | Yrd Mat Total Allies . | . . Largest Group . | . . Highest-Rated Group . | . . Highest-Rated Ally . | . . Total Orders . | . . Ally Attacks . | . . Total Damage . | . . Kills . | . . Allies Corrupted . | . . Allies Melted . | . . Intel | -11 -10 ------- Run | Yrd Mat Active Infowar (turns) 1289 | . 1289 ECM 1289 | . 1289 Robot Analysis Total . | . . Derelict Logs Recovered . | . . Drone Launches . | . . Drone Recoveries . | . . Exploration | -11 -10 ------------- Run | Yrd Mat Turns Passed 1390 | 67 1323 Spaces Moved 403 | 39 364 Core 7 | 7 . Treads 272 | 32 240 Legs 124 | . 124 Wheels . | . . Hover . | . . Flight . | . . Fastest Speed 50 | 50 160 Average Speed 305 | 140 323 Slowest Speed 480 | 160 480 Overloaded Moves . | . . Propulsion Burnouts . | . . Robots Hopped . | . . Potential Cave-ins . | . . Cave-ins Triggered . | . . Exploration Rate (%) 37 | 3 72 Regions Visited 1 Branch Regions . Pre-discovered Areas . | . . Known Exits Taken . | . . Unknown Exits Taken 1 | 1 . Scrap Searched . | . . Spaces Dug . | . . Terrain Destroyed . | . . Melee . | . . Projectile . | . . AOE . | . . Terrain Rammed . | . . Walls Destroyed . | . . Machines Disabled . | . . Actions | -11 -10 --------- Run | Yrd Mat Total 480 | 48 432 Wait 8 | . 8 Move 402 | 38 364 Hop . | . . Pick Up 15 | 4 11 Fast Attach 7 | 6 1 Attach 2 | . 2 Detach . | . . Swap 5 | . 5 Drop 1 | . 1 Fire 38 | . 38 Melee . | . . Ram . | . . Kick 2 | . 2 Crush . | . . Escape Stasis . | . . Rewire . | . . Trap . | . . Miscellaneous . | . . Route ------- -11/Scrapyard -10/Materials (discovered 3 exits: [*Mat x2] / Min) History --------- Turn | Location | Event 11 | -11/Scrapyard | Discovered new exit (range 16) 68 | -11/Scrapyard | Entered Materials 224 | -10/Materials | Discovered new exit (range 16) 309 | -10/Materials | Build established: Mutant 777 | -10/Materials | Core integrity fell below 50% 795 | -10/Materials | Discovered new exit (range 13) 1382 | -10/Materials | Core integrity fell below 20% 1385 | -10/Materials | Identified exit to Mines 1391 | -10/Materials | Destroyed by G-34 Mercenary with Small Laser Last Messages --------------- reinforcements to Terminal M007. 01179_ Acquired 40 matter. 01215_ Connecting with Terminal... 01215_ ALERT: Suspicious activity at Terminal M008. Dispatching Investigation squad. 01244_ Dropped Huge Storage Unit. 01269_ Kicked K-01 Serf out of the way. 01272_ R-06 Scavenger collects Huge Storage Unit. 01277_ Kicked K-01 Serf out of the way. 01368_ K-01 Serf cleans the Terminal. 01381_ Lgt. Cannon destroyed. 01385_ Connecting with Terminal... >>Index(Scanalyzers) No scanalyzers found. >>Access(Branch) Found 1 branch access point: (62,13) Mines Map updated. 01385_ Connecting with Terminal... Map ----- +----------------------------------------------------+ | ?????????????????????????????????????????????????? | | ?????????????????????????????????????????????????? | | ?????????????????????????????????????????????????? | | ?????????????????????????????????????????????????? | | ?????????????????????????????????????????????????? | | ??????????????##########?????????????????????????? | | ??????????##### #?????????????????????????? | | ??????????# # """ #?????????????????????????? | | ??????????# < # """ #?????????????????????????? | | ??????????# # """ #?????????????????????????? | | ???##+##### %+ #?????????????????????????? | | ##?#^ %*# #?????????????????????????? | | ?+ %# "T" #?????????????????????????? | | ""?# # """ #?????????????>???????????? | | T" + ^ ^ ^ [= # #?????????????????????????? | | "" # [= ########+#?????????????????????????? | | #^ """ [ #??????# #?????????????????????????? | | #### ! %#??????# #???######????????????????? | | =* ! *######## ##### T !?????????????????? | | % ! = % + ??????????????? | | ############## ???????????????????? | | #####+#########????#####???#/#?????????#?????????? | | # # #???# """""?### ###????? #?????????? | | # # #???# ""T"" # ##### #?????????? | | # # #???# # #?????????? | | # ###???# @ T #?????????? | | # ##????# # g #?????????? | | # ##????# """ # g ######u #?????????? | | # / #?????# """ ?## #######????????????? | | # #??????? """ ??# # """ #????????????? | | ###########??????? ???# + """ #????????????? | | #????????????????######???# # """ #????????????? | | #???????????######????????# # #????????????? | | #????#??????# =!!#????????# #| [ #????????????? | | #????# ?????# =! #????????# # #????????????? | | ##???# ????# !! #????????# + #????????????? | | ?# ??? ???# ########## #######????????????? | | ?# ??? ???# + #??????????????????? | | ?? ??? ??# # #########+##??????????????????? | | ?###+####+####+### #?????? ??????????????????? | | ?# ^ #?# #?????# ????????????????? | | ?# ^ ### #?????# ??????????????? | | ?# ^^[[[ T##+####### #?????????????? | | ?####### [^[[ ## # #?????????????? | | ???????# ^[[[ ## # #?????????????? | | ######## # # #?????????????? | | # # #?????????????? | | %% + ###########?????????????? | | # #???????????????????????? | | +########## # #???????????????????????? | +----------------------------------------------------+ Best States ------------- Heat Dissipation 25 Energy Generation 10 Energy Capacity 250 Matter Stores 300 Matter Capacity 300 Sight Range 16 Terrain Scan Density 10 ECM Strength 1 Evasion (%) 40 Recoil Reduction 2 Item Schematics ----------------- None Robot Schematics ------------------ None Fabricated ------------ Nothing Repaired ---------- Nothing Studied --------- None Alien Tech Used ----------------- None Achievements -------------- None Challenges ------------ None Game ------ Seed SupersonicNuclearPropulsion Manual? 0 Play Time 00:11:51 Cumulative 83.6 hours Start 2025.12.24 @ 16:40:46 End 2025.12.24 @ 16:50:07 Sessions 1 Manual Loads 0 Difficulty Rogue Special Mode None Game No. 95 Rogue 95 Adventurer 0 Explorer 0 Win Type - Total 3 Types 3/0/0/0/0/0/0/0/0/0 Lore% 51 Gallery% 45 Achievement% 27 Wizard Run 0 Options --------- Layout 1 ASCII 0 Keyboard 1 Movement Vi Keybinds 0 Fullscreen 2 Font 24/Terminus Map View 50x35 Zoom Use 0% Tactical HUD 1 Map Filters NONE Filters NONE Steam 1 RUN: d58ec38e-45d9-4f61-bc2e-1d104c31bc94